fUSD/lending_fUSD_20260227
["ID","MTS","AMOUNT","RATE_DAILY","PERIOD"]
[406777671,1772176891135,-500.0,0.00045953,120]
[406777672,1772176891196,-239.44152252,0.00045953,120]
[406777673,1772176891261,-500.0,0.00045953,120]
[406777674,1772176891322,-500.0,0.00045953,120]
[406777675,1772176891383,-500.0,0.00045953,120]
[406777676,1772176891443,-500.0,0.00045953,120]
[406777677,1772176891502,-500.0,0.00045953,120]
[406777678,1772176891562,-500.0,0.00045953,120]
[406777679,1772176891617,-500.0,0.00045953,120]
[406777680,1772176891670,-500.0,0.00045953,120]
[406777681,1772176891729,-500.0,0.00045953,120]
[406777682,1772176891783,-500.0,0.00045953,120]
[406777683,1772176891840,-500.0,0.00045953,120]
[406777684,1772176891897,-500.0,0.00045953,120]
[406777685,1772176891951,-334.44431818,0.00045953,120]
[406777686,1772176892008,-508.26551189,0.00045953,120]
[406777687,1772176892060,-500.0,0.00045953,120]
[406777688,1772176892112,-500.0,0.00045953,120]
[406777689,1772176892180,-500.0,0.00045953,120]
[406777690,1772176892239,-515.98566898,0.00045953,120]
[406777691,1772176892293,-500.0,0.00045953,120]
[406777692,1772176892554,-500.0,0.00045953,120]
[406777693,1772176892603,-500.0,0.00045953,120]
[406777694,1772176892652,-500.0,0.00045953,120]
[406777695,1772176892705,-500.0,0.00045953,120]
[406777696,1772176892752,-500.0,0.00045953,120]
[406777697,1772176892800,-500.0,0.00045953,120]
[406777698,1772176892848,-500.0,0.00045953,120]
[406777699,1772176892895,-388.03794834,0.00045953,120]
[406777700,1772176892940,-500.0,0.00045953,120]
[406777701,1772176892987,-500.0,0.00045953,120]
[406777702,1772176893034,-500.0,0.00045953,120]
[406777703,1772176893080,-500.0,0.00045953,120]
[406777704,1772176893125,-500.0,0.00045953,120]
[406777705,1772176893176,-500.0,0.00045953,120]
[406777706,1772176893226,-500.0,0.00045953,120]
[406777707,1772176893276,-500.0,0.00045953,120]
[406777708,1772176893330,-555.98024523,0.00045953,120]
[406777709,1772176893376,-500.0,0.00045953,120]
[406777710,1772176893422,-322.16774351,0.00045953,120]
[406777711,1772176893468,-500.0,0.00045953,120]
[406777712,1772176893512,-500.0,0.00045953,120]
[406777713,1772176893554,-500.0,0.00045953,120]
[406777714,1772176893596,-552.64449204,0.00045953,120]
[406777715,1772176893637,-500.0,0.00045953,120]
[406777716,1772176893680,-500.0,0.00045953,120]
[406777717,1772176893724,-500.0,0.00045953,120]
[406777718,1772176893768,-500.0,0.00045953,120]
[406777719,1772176893809,-500.0,0.00045953,120]
[406777720,1772176893850,-500.0,0.00045953,120]
[406777721,1772176893890,-500.0,0.00045953,120]
[406777722,1772176893932,-500.0,0.00045953,120]
[406777723,1772176893972,-628.34947731,0.00045953,120]
[406777724,1772176894012,-500.0,0.00045953,120]
[406777725,1772176894051,-500.0,0.00045953,120]
[406777726,1772176894091,-500.0,0.00045953,120]
[406777727,1772176894132,-500.0,0.00045953,120]
[406777728,1772176894176,-500.0,0.00045953,120]
[406777729,1772176894220,-500.0,0.00045953,120]
[406777730,1772176894264,-599.02722933,0.00045953,120]
[406777731,1772176894308,-500.0,0.00045953,120]
[406777732,1772176894351,-500.0,0.00045953,120]
[406777733,1772176894392,-500.0,0.00045953,120]
[406777734,1772176894433,-500.0,0.00045953,120]
[406777735,1772176894478,-500.0,0.00045953,120]
[406777736,1772176894520,-500.0,0.00045953,120]
[406777737,1772176894558,-500.0,0.00045953,120]
[406777738,1772176894596,-500.0,0.00045953,120]
[406777739,1772176894635,-500.0,0.00045953,120]
[406777740,1772176894675,-500.0,0.00045953,120]
[406777741,1772176894713,-500.0,0.00045953,120]
[406777742,1772176894756,-500.0,0.00045953,120]
[406777743,1772176894794,-539.16279006,0.00045953,120]
[406777744,1772176894831,-500.0,0.00045953,120]
[406777745,1772176894870,-500.0,0.00045953,120]
[406777746,1772176894909,-500.0,0.00045953,120]
[406777747,1772176894949,-500.0,0.00045953,120]
[406777748,1772176894988,-500.0,0.00045953,120]
[406777749,1772176895029,-533.10916657,0.00045953,120]
[406777750,1772176895072,-500.0,0.00045953,120]
[406777751,1772176895114,-500.0,0.00045953,120]
[406777752,1772176895158,-500.0,0.00045953,120]
[406777753,1772176895200,-500.0,0.00045953,120]
[406777754,1772176895245,-500.0,0.00045953,120]
[406777755,1772176895287,-500.0,0.00045953,120]
[406777756,1772176895331,-500.0,0.00045953,120]
[406777757,1772176895374,-500.0,0.00045953,120]
[406777758,1772176895415,-500.0,0.00045953,120]
[406777759,1772176895458,-500.0,0.00045953,120]
[406777760,1772176895500,-500.0,0.00045953,120]
[406777761,1772176895540,-500.0,0.00045953,120]
[406777762,1772176895581,-500.0,0.00045953,120]
[406777763,1772176895622,-500.0,0.00045953,120]
[406777764,1772176895665,-372.97325713,0.00045953,120]
[406777765,1772176895711,-500.0,0.00045953,120]
[406777766,1772176895753,-500.0,0.00045953,120]
[406777767,1772176895794,-500.0,0.00045953,120]
[406777768,1772176895837,-500.0,0.00045953,120]
[406777769,1772176895878,-500.0,0.00045953,120]
[406777770,1772176895923,-500.0,0.00045953,120]
[406777771,1772176895968,-500.0,0.00045953,120]
[406777772,1772176896012,-500.0,0.00045953,120]
[406777773,1772176896060,-500.0,0.00045953,120]
[406777774,1772176896105,-541.86513293,0.00045953,120]
[406777775,1772176896151,-528.61860735,0.00045953,120]
[406777776,1772176896198,-538.68611176,0.00045953,120]
[406777777,1772176896244,-170.9599253,0.00045953,120]
[406777778,1772176896482,-258.0,0.00045953,120]
[406777779,1772176896528,-40155.72016038,0.00045953,30]
[406777780,1772176896574,-500.0,0.00045953,120]
[406777781,1772176896623,-500.0,0.00045953,120]
[406777782,1772176896689,-500.0,0.00045953,120]
[406777783,1772176896749,-500.0,0.00045953,120]
[406777784,1772176896794,-500.0,0.00045953,120]
[406777785,1772176896838,-500.0,0.00045953,120]
[406777786,1772176896881,-500.0,0.00045953,120]
[406777787,1772176896928,-500.0,0.00045953,120]
[406777788,1772176896974,-500.0,0.00045953,120]
[406777789,1772176897020,-513.68694042,0.00045953,120]
[406777790,1772176897064,-651.11,0.00045953,120]
[406777791,1772176897103,-651.11,0.00045953,120]
[406777792,1772176897140,-651.11,0.00045953,120]
[406777793,1772176897180,-651.11,0.00045953,120]
[406777794,1772176897217,-651.11,0.00045953,120]
[406777795,1772176897257,-651.11,0.00045953,120]
[406777796,1772176897298,-651.11,0.00045953,120]
[406777797,1772176897336,-651.11,0.00045953,120]
[406777798,1772176897374,-651.11,0.00045953,120]
[406777799,1772176897412,-651.11,0.00045953,120]
[406777800,1772176897449,-651.11,0.00045953,120]
[406777801,1772176897488,-651.11,0.00045953,120]
[406777802,1772176897526,-651.11,0.00045953,120]
[406777803,1772176897563,-651.11,0.00045953,120]
[406777804,1772176897600,-651.11,0.00045953,120]
[406777805,1772176897637,-651.11,0.00045953,120]
[406777806,1772176897678,-651.11,0.00045953,120]
[406777807,1772176897718,-651.11,0.00045953,120]
[406777808,1772176897761,-651.11,0.00045953,120]
[406777809,1772176897801,-651.11,0.00045953,120]
[406777810,1772176897842,-651.11,0.00045953,120]
[406777811,1772176897887,-651.11,0.00045953,120]
[406777812,1772176897936,-651.11,0.00045953,120]
[406777813,1772176897980,-651.2340906,0.00045953,120]
[406777814,1772176898028,-500.0,0.00045953,120]
[406777815,1772176898069,-500.0,0.00045953,120]
[406777816,1772176898109,-500.0,0.00045953,120]
[406777817,1772176898147,-623.89520831,0.00045953,120]
[406777818,1772176898190,-500.0,0.00045953,60]
[406777819,1772176898232,-500.0,0.00045953,60]
[406777820,1772176898276,-500.0,0.00045953,60]
[406777821,1772176898318,-500.0,0.00045953,60]
[406777822,1772176898377,-500.0,0.00045953,60]
[406777823,1772176898434,-500.0,0.00045953,60]
[406777824,1772176898491,-500.0,0.00045953,60]
[406777825,1772176898549,-500.0,0.00045953,60]
[406777826,1772176898606,-500.0,0.00045953,60]
[406777827,1772176898667,-500.0,0.00045953,60]
[406777828,1772176898727,-500.0,0.00045953,60]
[406777829,1772176898785,-500.0,0.00045953,60]
[406777830,1772176898840,-500.0,0.00045953,60]
[406777831,1772176898899,-500.0,0.00045953,60]
[406777832,1772176898950,-500.0,0.00045953,60]
[406777833,1772176899002,-500.0,0.00045953,60]
[406777834,1772176899053,-500.0,0.00045953,60]
[406777835,1772176899105,-500.0,0.00045953,60]
[406777836,1772176899162,-500.0,0.00045953,60]
[406777837,1772176899224,-500.0,0.00045953,60]
[406777838,1772176899283,-500.0,0.00045953,60]
[406777839,1772176899339,-221.88178587,0.00045953,60]
[406777840,1772176899395,-500.0,0.00045953,120]
[406777841,1772176899450,-1009.64,0.00045953,120]
[406777842,1772176899509,-1009.64,0.00045953,120]
[406777843,1772176899563,-1009.64,0.00045953,120]
[406777844,1772176899617,-1009.64,0.00045953,120]
[406777845,1772176899670,-1009.64,0.00045953,120]
[406777846,1772176899723,-1009.64,0.00045953,120]
[406777847,1772176899779,-1009.64,0.00045953,120]
[406777848,1772176899832,-1009.64,0.00045953,120]
[406777849,1772176899885,-1009.64,0.00045953,120]
[406777850,1772176899939,-1009.64,0.00045953,120]
[406777851,1772176899990,-1009.64,0.00045953,120]
[406777852,1772176900037,-1009.64,0.00045953,120]
[406777853,1772176900086,-1009.64,0.00045953,120]
[406777854,1772176900135,-1009.64,0.00045953,120]
[406777855,1772176900183,-1009.64,0.00045953,120]
[406777856,1772176900230,-1009.64,0.00045953,120]
[406777857,1772176900277,-1009.64,0.00045953,120]
[406777858,1772176900322,-1009.86981376,0.00045953,120]
[406777859,1772176900373,-500.0,0.00045953,120]
[406777860,1772176900424,-500.0,0.00045953,120]
[406777861,1772176900473,-500.0,0.00045953,120]
[406777862,1772176900524,-500.0,0.00045953,120]
[406777863,1772176900574,-500.0,0.00045953,120]
[406777864,1772176900623,-500.0,0.00045953,120]
[406777865,1772176900671,-500.0,0.00045953,120]
[406777866,1772176900719,-500.0,0.00045953,120]
[406777867,1772176901028,-500.0,0.00045953,120]
[406777868,1772176901070,-500.0,0.00045953,120]
[406777869,1772176901113,-500.0,0.00045953,120]
[406777870,1772176901156,-500.0,0.00045953,120]
[406777871,1772176901198,-500.0,0.00045953,120]
[406777872,1772176901240,-500.0,0.00045953,120]
[406777873,1772176901284,-500.0,0.00045953,120]
[406777874,1772176901326,-500.0,0.00045953,120]
[406777875,1772176901370,-521.81591869,0.00045953,120]
[406777876,1772176901412,-283519.71781938,0.00045953,120]
[406777877,1772176901455,-189.83641197,0.00045953,120]
[406777878,1772176901497,-412.74311808,0.00045953,120]
[406777879,1772176901540,-297.6084033,0.00045953,120]
[406777880,1772176901589,-179.93528834,0.00045953,120]
[406777881,1772176901632,-500.0,0.00045953,120]
[406777882,1772176901676,-209.66417882,0.00045953,120]
[406777883,1772176901720,-332.41425236,0.00045953,120]
[406777884,1772176901764,-246.53645059,0.00045953,120]
[406777885,1772176901806,-2737.9195464,0.00045953,120]
[406777886,1772176901849,-267.25690341,0.00045953,120]
[406777887,1772176901893,-219.94352833,0.00045953,120]
[406777888,1772176901935,-266.20846751,0.00045953,120]
[406777889,1772176901975,-161.51335311,0.00045953,120]
[406777890,1772176902014,-221.39155899,0.00045953,120]
[406777891,1772176902057,-270.48100238,0.00045953,120]
[406777892,1772176902097,-250.69404967,0.00045953,120]
[406777893,1772176902138,-150.44335806,0.00045953,120]
[406777894,1772176902180,-323.8909075,0.00045953,120]
[406777895,1772176902224,-500.0,0.00045953,120]
[406777896,1772176902267,-500.0,0.00045953,120]
[406777897,1772176902309,-500.0,0.00045953,120]
[406777898,1772176902352,-283.88752784,0.00045953,120]
[406777899,1772176902395,-647.23018633,0.00045953,120]
[406777900,1772176902437,-289.11758673,0.00045953,120]
[406777901,1772176902480,-204.11613419,0.00045953,120]
[406777902,1772176902521,-317.66287345,0.00045953,120]
[406777903,1772176902562,-265.11785925,0.00045953,120]
[406777904,1772176902604,-184.48094518,0.00045953,120]
[406777905,1772176902645,-173.19307525,0.00045953,120]
[406777906,1772176902691,-223.18791019,0.00045953,120]
[406777907,1772176902733,-359.82841732,0.00045953,120]
[406777908,1772176902774,-198.38864418,0.00045953,120]
[406777909,1772176902815,-232.31213457,0.00045953,120]
[406777910,1772176902856,-150.26065648,0.00045953,120]
[406777911,1772176902897,-500.0,0.00045953,120]
[406777912,1772176902940,-334.28695534,0.00045953,120]
[406777913,1772176902980,-178.00149542,0.00045953,120]
[406777914,1772176903021,-174.02852865,0.00045953,120]
[406777915,1772176903063,-219.68078969,0.00045953,120]
[406777916,1772176903104,-558.34434815,0.00045953,120]
[406777917,1772176903146,-231.73270719,0.00045953,120]
[406777918,1772176903191,-192.60131406,0.00045953,120]
[406777919,1772176903236,-229.65946759,0.00045953,120]
[406777920,1772176903279,-274.01500282,0.00045953,120]
[406777921,1772176903320,-262.88345967,0.00045953,120]
[406777922,1772176903360,-265.6439236,0.00045953,120]
[406777923,1772176903398,-168.48666592,0.00045953,60]
[406777924,1772176903438,-156.60329352,0.00045953,120]
[406777925,1772176903476,-158.99453386,0.00045953,120]
[406777926,1772176903514,-227.93493833,0.00045953,120]
[406777927,1772176903552,-163.34083453,0.00045953,120]
[406777928,1772176903594,-302.15794382,0.00045953,120]
[406777929,1772176903635,-198.36416675,0.00045953,120]
[406777930,1772176903679,-221.55567439,0.00045953,120]
[406777931,1772176903723,-209.85185075,0.00045953,120]
[406777932,1772176903769,-500.0,0.00045953,120]
[406777933,1772176903813,-177.90439505,0.00045953,120]
[406777934,1772176903861,-241.14401939,0.00045953,120]
[406777935,1772176903914,-261.65928516,0.00045953,120]
[406777936,1772176903967,-282.39480647,0.00045953,120]
[406777937,1772176904014,-534.9292,0.00045953,120]
[406777938,1772176904061,-363.61857772,0.00045953,120]
[406777939,1772176904108,-290.23430093,0.00045953,120]
[406777940,1772176904155,-257.11577791,0.00045953,120]
[406777941,1772176904200,-154.06378657,0.00045953,120]
[406777942,1772176904246,-267.06437833,0.00045953,120]
[406777943,1772176904292,-205.48599137,0.00045953,120]
[406777944,1772176904336,-633.68120521,0.00045953,120]
[406777945,1772176904385,-186.69570221,0.00045953,120]
[406777946,1772176904435,-196.86447927,0.00045953,60]
[406777947,1772176904484,-159.14743423,0.00045953,120]
[406777948,1772176904529,-179.91997707,0.00045953,120]
[406777949,1772176904572,-367.83672633,0.00045953,120]
[406777950,1772176904615,-240.90650439,0.00045953,120]
[406777951,1772176904841,-351.21448098,0.00045953,120]
[406777952,1772176904887,-500.0,0.00045953,120]
[406777953,1772176904930,-183.34101284,0.00045953,120]
[406777954,1772176904973,-172.70294603,0.00045953,120]
[406777955,1772176905012,-169.99511091,0.00045953,120]
[406777956,1772176905066,-224.44078932,0.00045953,120]
[406777957,1772176905117,-268.49385259,0.00045953,120]
[406777958,1772176905167,-154.54525391,0.00045953,120]
[406777959,1772176905215,-384.3050723,0.00045953,120]
[406777960,1772176905263,-625.8412331,0.00045953,120]
[406777961,1772176905316,-418.67893928,0.00045953,120]
[406777962,1772176905362,-217.69184886,0.00045953,120]
[406777963,1772176905409,-229.31410514,0.00045953,120]
[406777964,1772176905464,-402.87264642,0.00045953,120]
[406777965,1772176905526,-178.9208784,0.00045953,120]
[406777966,1772176905576,-265.1046859,0.00045953,120]
[406777967,1772176905624,-367.81549288,0.00045953,120]
[406777968,1772176905674,-546.82624637,0.00045953,120]
[406777969,1772176905725,-175.34713258,0.00045953,120]
[406777970,1772176905775,-183.00497221,0.00045953,120]
[406777971,1772176905823,-500.0,0.00045953,120]
[406777972,1772176905871,-500.0,0.00045953,120]
[406777973,1772176905919,-195.00950916,0.00045953,120]
[406777974,1772176905967,-325.09670721,0.00045953,120]
[406777975,1772176906014,-164.63850047,0.00045953,120]
[406777976,1772176906061,-2000.0,0.00045953,30]
[406777977,1772176906108,-500.0,0.00045953,120]
[406777978,1772176906159,-443.37010857,0.00045953,120]
[406777979,1772176906212,-286.40183964,0.00045953,120]
[406777980,1772176906263,-314.33286313,0.00045953,120]
[406777981,1772176906312,-162.73825008,0.00045953,120]
[406777982,1772176906360,-172.72299457,0.00045953,120]
[406777983,1772176906409,-202.43173236,0.00045953,120]
[406777984,1772176906459,-191.65451418,0.00045953,120]
[406777985,1772176906509,-246.53743055,0.00045953,120]
[406777986,1772176906563,-329.50369249,0.00045953,120]
[406777987,1772176906618,-256.40239604,0.00045953,120]
[406777988,1772176906669,-207.92553409,0.00045953,120]
[406777989,1772176906719,-500.0,0.00045953,120]
[406777990,1772176906771,-500.0,0.00045953,120]
[406777991,1772176906822,-262.74753709,0.00045953,120]
[406777992,1772176906872,-500.0,0.00045953,120]
[406777993,1772176906921,-277.95555326,0.00045953,120]
[406777994,1772176906969,-278.9922881,0.00045953,120]
[406777995,1772176907022,-217.54076734,0.00045953,120]
[406777996,1772176907076,-151.87895386,0.00045953,120]
[406777997,1772176907128,-182.02286885,0.00045953,120]
[406777998,1772176907176,-266.50655801,0.00045953,120]
[406777999,1772176907219,-253.46752432,0.00045953,120]
[406778000,1772176907263,-162.12547955,0.00045953,120]
[406778001,1772176907305,-278.24104275,0.00045953,120]
[406778002,1772176907348,-347.12722614,0.00045953,120]
[406778003,1772176907390,-500.0,0.00045953,120]
[406778004,1772176907433,-390.27931741,0.00045953,120]
[406778005,1772176907474,-150.76274435,0.00045953,120]
[406778006,1772176907519,-260.3856541,0.00045953,60]
[406778007,1772176907563,-187.07683484,0.00045953,120]
[406778008,1772176907608,-162.79561133,0.00045953,120]
[406778009,1772176907661,-180.30447478,0.00045953,120]
[406778010,1772176907709,-227.46325321,0.00045953,120]
[406778011,1772176907754,-379.72797622,0.00045953,120]
[406778012,1772176907799,-163.7969703,0.00045953,120]
[406778013,1772176907842,-231.75198574,0.00045953,120]
[406778014,1772176907886,-170.64987299,0.00045953,120]
[406778015,1772176907931,-156.21151691,0.00045953,120]
[406778016,1772176907975,-56825.26013217,0.00045953,120]
[406778017,1772176908020,-206.7098396,0.00045953,120]
[406778018,1772176908072,-177.57487796,0.00045953,120]
[406778019,1772176908120,-150.1461777,0.00045953,120]
[406778020,1772176908167,-201.32912994,0.00045953,120]
[406778021,1772176908220,-166.45076382,0.00045953,120]
[406778022,1772176908268,-234.0,0.00045953,120]
[406778023,1772176908316,-1492.4,0.00045953,120]
[406778024,1772176908363,-1492.4,0.00045953,120]
[406778025,1772176908410,-1492.4,0.00045953,120]
[406778026,1772176908459,-1492.4,0.00045953,120]
[406778027,1772176908508,-1492.4,0.00045953,120]
[406778028,1772176908555,-1492.4,0.00045953,120]
[406778029,1772176908602,-1492.4,0.00045953,120]
[406778030,1772176908654,-1492.4,0.00045953,120]
[406778031,1772176908706,-1492.4,0.00045953,120]
[406778032,1772176908754,-1492.4,0.00045953,120]
[406778033,1772176908802,-1492.4,0.00045953,120]
[406778034,1772176908854,-1492.4,0.00045953,120]
[406778035,1772176908904,-1492.4,0.00045953,120]
[406778036,1772176908954,-1492.4,0.00045953,120]
[406778037,1772176909005,-1492.4,0.00045953,120]
[406778038,1772176909263,-1492.4,0.00045953,120]
[406778039,1772176909315,-1492.4,0.00045953,120]
[406778040,1772176909360,-1492.4,0.00045953,120]
[406778041,1772176909407,-1492.4,0.00045953,120]
[406778042,1772176909456,-1492.4,0.00045953,120]
[406778043,1772176909506,-1492.4,0.00045953,120]
[406778044,1772176909556,-1492.4,0.00045953,120]
[406778045,1772176909602,-1492.4,0.00045953,120]
[406778046,1772176909647,-1492.52731519,0.00045953,120]
[406778047,1772176909696,-500.0,0.00045953,120]
[406778048,1772176909746,-500.0,0.00045953,120]
[406778049,1772176909792,-500.0,0.00045953,120]
[406778050,1772176909839,-500.0,0.00045953,120]
[406778051,1772176909882,-500.0,0.00045953,120]
[406778052,1772176909925,-277.99021084,0.00045953,120]
[406778053,1772176909967,-1135.42853624,0.00045953,120]
[406778054,1772176910010,-326.69694262,0.00045953,120]
[406778055,1772176910056,-956.8162719,0.00045953,120]
[406778056,1772176910098,-1776.85752279,0.00045953,120]
[406778057,1772176910153,-303.48523529,0.00045953,120]
[406778058,1772176910197,-181.04033142,0.00045953,60]
[406778059,1772176910241,-552.85337528,0.00045953,120]
[406778060,1772176910285,-156.86361563,0.00045953,120]
[406778061,1772176910328,-154.18518595,0.00045953,30]
[406778062,1772176910371,-370.10952091,0.00045953,120]
[406778063,1772176910413,-275.39176687,0.00045953,30]
[406778064,1772176910456,-947.19071091,0.00045953,30]
[406778065,1772176910498,-278.03455642,0.00045953,30]
[406778066,1772176910543,-1718.55225596,0.00045953,30]
[406778067,1772176910587,-159.1960628,0.00045953,120]
[406778068,1772176910638,-500.0,0.00045953,120]
[406778069,1772176910688,-500.0,0.00045953,120]
[406778070,1772176910741,-500.0,0.00045953,120]
[406778071,1772176910793,-500.0,0.00045953,120]
[406778072,1772176910840,-500.0,0.00045953,120]
[406778073,1772176910887,-500.0,0.00045953,120]
[406778074,1772176910936,-500.0,0.00045953,120]
[406778075,1772176910983,-500.0,0.00045953,120]
[406778076,1772176911028,-295.67410509,0.00045953,120]
[406778077,1772176911075,-889.71,0.00045953,120]
[406778078,1772176911121,-889.71,0.00045953,120]
[406778079,1772176911166,-889.71,0.00045953,120]
[406778080,1772176911211,-889.71,0.00045953,120]
[406778081,1772176911255,-889.71,0.00045953,120]
[406778082,1772176911306,-889.71,0.00045953,120]
[406778083,1772176911352,-889.71,0.00045953,120]
[406778084,1772176911397,-889.71,0.00045953,120]
[406778085,1772176911444,-889.71,0.00045953,120]
[406778086,1772176911495,-889.71,0.00045953,120]
[406778087,1772176911542,-889.71,0.00045953,120]
[406778088,1772176911590,-889.71,0.00045953,120]
[406778089,1772176911639,-889.71,0.00045953,120]
[406778090,1772176911687,-889.71,0.00045953,120]
[406778091,1772176911738,-889.71,0.00045953,120]
[406778092,1772176911786,-889.71,0.00045953,120]
[406778093,1772176911839,-889.71,0.00045953,120]
[406778094,1772176911887,-889.71,0.00045953,120]
[406778095,1772176911937,-889.71,0.00045953,120]
[406778096,1772176911986,-889.71,0.00045953,120]
[406778097,1772176912034,-889.71,0.00045953,120]
[406778098,1772176912083,-889.71,0.00045953,120]
[406778099,1772176912127,-889.71,0.00045953,120]
[406778100,1772176912171,-889.85324903,0.00045953,120]
[406778101,1772176912214,-500.0,0.00045953,120]
[406778102,1772176912261,-519.77239446,0.00045953,120]
[406778103,1772176912305,-49509.02,0.00045953,120]
[406778104,1772176912345,-911.0,0.00045953,120]
[406778105,1772176912384,-344.35062189,0.00045953,30]
[406778106,1772176912426,-500.0,0.00045953,120]
[406778107,1772176912466,-500.0,0.00045953,120]
[406778108,1772176912506,-500.0,0.00045953,120]
[406778109,1772176912546,-500.0,0.00045953,120]
[406778110,1772176912588,-500.0,0.00045953,120]
[406778111,1772176912629,-500.0,0.00045953,120]
[406778112,1772176912671,-204.37293862,0.00045953,120]
[406778113,1772176912711,-500.0,0.00045953,120]
[406778114,1772176912748,-500.0,0.00045953,120]
[406778115,1772176912787,-500.0,0.00045953,120]
[406778116,1772176912824,-525.31557313,0.00045953,120]
[406778117,1772176912861,-500.0,0.00045953,120]
[406778118,1772176912900,-500.0,0.00045953,120]
[406778119,1772176912939,-500.0,0.00045953,120]
[406778120,1772176912978,-500.0,0.00045953,120]
[406778121,1772176913017,-556.03924167,0.00045953,120]
[406778122,1772176913056,-500.0,0.00045953,120]
[406778123,1772176913095,-500.0,0.00045953,120]
[406778124,1772176913330,-500.0,0.00045953,120]
[406778125,1772176913375,-500.0,0.00045953,120]
[406778126,1772176913417,-500.0,0.00045953,120]
[406778127,1772176913459,-500.0,0.00045953,120]
[406778128,1772176913501,-500.0,0.00045953,120]
[406778129,1772176913542,-500.0,0.00045953,120]
[406778130,1772176913583,-343.32604401,0.00045953,120]
[406778131,1772176913626,-500.0,0.00045953,120]
[406778132,1772176913670,-412.37090316,0.00045953,120]
[406778133,1772176913730,-637.21486636,0.00045953,118]
[406778134,1772176913777,-166.0,0.00045953,30]
[406778135,1772176913822,-399.4472648,0.00045953,120]
[406778136,1772176913867,-2556.02,0.00045953,120]
[406778137,1772176913915,-2993.02,0.00045953,120]
[406778138,1772176913959,-2098.02,0.00045953,120]
[406778139,1772176914002,-500.0,0.00045953,120]
[406778140,1772176914046,-500.0,0.00045953,120]
[406778141,1772176914090,-500.0,0.00045953,120]
[406778142,1772176914135,-500.0,0.00045953,120]
[406778143,1772176914180,-500.0,0.00045953,120]
[406778144,1772176914228,-500.0,0.00045953,120]
[406778145,1772176914288,-2860.44,0.00045953,120]
[406778146,1772176914337,-2860.44,0.00045953,120]
[406778147,1772176914392,-2860.44,0.00045953,120]
[406778148,1772176914440,-2860.44,0.00045953,120]
[406778149,1772176914486,-2860.44,0.00045953,120]
[406778150,1772176914534,-2860.44,0.00045953,120]
[406778151,1772176914579,-2860.44,0.00045953,120]
[406778152,1772176914624,-2860.44,0.00045953,120]
[406778153,1772176914667,-2860.44,0.00045953,120]
[406778154,1772176914709,-2860.44,0.00045953,120]
[406778155,1772176914753,-2860.44,0.00045953,120]
[406778156,1772176914794,-2860.44,0.00045953,120]
[406778157,1772176914834,-2860.44,0.00045953,120]
[406778158,1772176914875,-2860.44,0.00045953,120]
[406778159,1772176914917,-2860.44,0.00045953,120]
[406778160,1772176914959,-2860.44,0.00045953,120]
[406778161,1772176915000,-2860.44,0.00045953,120]
[406778162,1772176915047,-2860.44,0.00045953,120]
[406778163,1772176915092,-2860.44,0.00045953,120]
[406778164,1772176915136,-2860.44,0.00045953,120]
[406778165,1772176915180,-2860.44,0.00045953,120]
[406778166,1772176915231,-2860.60916305,0.00045953,120]
[406778167,1772176915280,-257.07262859,0.00045953,120]
[406778168,1772176915331,-1328.97,0.00045953,120]
[406778169,1772176915381,-1328.97,0.00045953,120]
[406778170,1772176915439,-1328.97,0.00045953,120]